Cogmind - Beta 17 @@@ ROGUE MODE // 2026.08.21 @ 13:36:08 Player: LandRaider Result: Destroyed by BB-SBS(R) with Subdweller Machine Gun Performance ------------- Evolutions (0) 0 Regions Visited (2) 400 Robots Destroyed (26) 130 Value Destroyed (575) 575 Prototype IDs (0) 0 Alien Tech Used (0) 0 Bonus (0) 0 TOTAL SCORE: 1105 Bonus ------- None Cogmind --------- Core Integrity 0/250 Matter 270/300 Energy 220/250 System Corruption 0% Temperature Cool (0) Movement Walking (680) Ox8 Location -10/Subcaves Parts ------- > --- POWER (1) -------- Ion Engine > --- PROPULSION (2) --- Light Treads Aluminum Leg > --- UTILITY (2) ------ Huge Storage Unit > --- WEAPON (2) ------- Assault Rifle Mining Laser > --- INVENTORY (25) --- Ion Engine Ion Engine Light Treads Light Treads Aluminum Leg Aluminum Leg Aluminum Leg Aluminum Leg Aluminum Leg Improved Heat Sink Huge Storage Unit Sensor Array Improved Terrain Scanner Transport Network Coupler Power Shielding Power Shielding Medium Laser Particle Gun Assault Rifle Assault Rifle Light Assault Rifle Peak State ------------ > --- POWER ------------ Light Nuclear Core > --- PROPULSION ------- Compact Wheel Compact Wheel > --- UTILITY ---------- Huge Storage Unit Seismic Detector > --- WEAPON ----------- Assault Rifle Assault Rifle > --- INVENTORY -------- Ion Engine Ion Engine Light Treads Light Treads Light Treads Aluminum Leg Aluminum Leg Aluminum Leg Aluminum Leg Aluminum Leg Aluminum Leg Improved Heat Sink Huge Storage Unit Sensor Array Improved Terrain Scanner Transport Network Coupler Power Shielding Power Shielding Light Armor Plating Light Armor Plating Medium Laser Small Laser Small Laser Light Assault Rifle Mining Laser [Rating: 11] Favorites ----------- Power Light Ion Engine Engine Light Ion Engine Power Core Light Nuclear Core Propulsion Compact Wheel Treads Light Treads Wheel Compact Wheel Utility Huge Storage Unit Device Seismic Detector Storage Huge Storage Unit Protection Light Armor Plating Weapon Assault Rifle Energy Gun Particle Gun Ballistic Gun Assault Rifle Special Weapon Mining Laser Build | -11 -10 -10 ------- Run | Yrd Mat Sub Slots Evolved . | . . . Power . | . . . Propulsion . | . . . Utility . | . . . Weapon . | . . . Parts Attached 22 | 7 9 6 Power 5 | 1 3 1 Engine 3 | 1 1 1 Core 2 | . 2 . Reactor . | . . . Propulsion 5 | 2 . 3 Treads 2 | . . 2 Leg 1 | . . 1 Wheel 2 | 2 . . Hover . | . . . Flight . | . . . Utility 5 | 2 2 1 Device 1 | 1 . . Storage 2 | 1 1 . Processor . | . . . Hackware . | . . . Protection 2 | . 1 1 Artifact . | . . . Weapon 7 | 2 4 1 Energy Gun 2 | . 2 . Energy Cannon . | . . . Ballistic Gun 4 | 2 2 . Ballistic Cannon . | . . . Launcher . | . . . Special Weapon 1 | . . 1 Impact Weapon . | . . . Slashing Weapon . | . . . Piercing Weapon . | . . . Special Melee Weapon . | . . . Unidentified Prototypes . | . . . Parts Lost 8 | . 3 5 Power 2 | . 1 1 Propulsion 2 | . . 2 Utility 3 | . 1 2 Weapon 1 | . 1 . Highest Loss Streak 4 | . 2 4 To Critical Strikes . | . . . Average Backups 20 | 4 21 22 Power 2 | . 2 2 Propulsion 7 | 2 8 7 Utility 6 | . 7 7 Weapon 4 | . 3 5 Tool/Special . | . . . Unused Backups 19 | . 1 18 Power 2 | . . 2 Propulsion 6 | . . 6 Utility 7 | . . 7 Weapon 4 | . 1 3 Tool/Special . | . . . Average Slot Usage (%) 97 | . 97 97 Engine 9 | . 8 12 Core 2 | . 3 . Treads 5 | . . 19 Wheel 21 | . 28 7 Device 4 | . 6 . Storage 14 | . 14 14 Protection 9 | . 7 13 Energy Gun 6 | . 6 8 Ballistic Gun 19 | . 21 14 Special Weapon 1 | . . 5 Peak Build Rating 11 | 8 11 10 Average Rating 9 | 5 9 9 On Entrance 6 | . 8 10 Avg Prop Armor Cover (%) . | . . . Naked Turns . | . . . Heaviest Build 93 | 12 92 93 Greatest Support 40 | 32 32 40 Greatest Overweight (x) 5 | . 2 5 Average Overweight (x) 1 | . 1 2 Largest Inventory Capacity 25 | 8 25 25 Average Capacity 22 | 7 23 25 Most Carried 25 | 8 25 25 Average Carried 21 | 4 21 22 Final Capacity 25 | 8 25 25 Final Carried 25 | 8 25 21 Class Distribution -------------------- 100% | Mutant Dominant Class ---------------- Mutant | -10/Materials Mutant | -10/Subcaves Resources | -11 -10 -10 ----------- Run | Yrd Mat Sub Matter Collected 821 | 298 460 63 Remotely . | . . . Salvage Created 1026 | 149 799 78 Parts 62 | 14 43 5 Haulers Intercepted 2 | . 2 . Recyclers Shooed 2 | 1 1 . Parts Field Recycled . | . . . Retrieved Matter . | . . . Parts Self-Destructed 7 | . . 7 Prevented . | . . . Parts Restored . | . . . Kills | -11 -10 -10 ------- Run | Yrd Mat Sub Combat Hostiles Destroyed 15 | . 11 4 Guns 15 | . 11 4 Classes Destroyed 7 | 2 3 2 Tunneler 4 | 4 . . Hauler 2 | . 2 . Recycler 2 | 1 1 . Watcher 3 | . 3 . Swarmer 3 | . . 3 Grunt 11 | . 11 . Subdweller 1 | . . 1 Best Kill Streak 5 | 5 3 3 Combat Bots Only 3 | . 3 3 Max Kills in Single Turn 1 | 1 1 1 Gunslinging . | . . . Exploded . | . . . Melee . | . . . Uniques/NPCs Destroyed . | . . . Combat | -11 -10 -10 -------- Run | Yrd Mat Sub Hostile Shots Fired 154 | . 73 81 Missed 53 | . 24 29 Hits 101 | . 49 52 Projectile 101 | . 49 52 Damage Taken 1195 | . 599 596 Core 257 | . 127 130 Absorbed by Shields . | . . . Core Remaining (%) 100 | 100 . . Volleys Fired 149 | 7 82 60 Largest 2 | 2 2 2 Hottest 100 | 40 85 100 Shots Fired 252 | 14 162 76 Gun 208 | 14 162 32 Cannon . | . . . Launcher . | . . . Special 44 | . . 44 Kinetic 178 | 14 148 16 Thermal 74 | . 14 60 Explosive . | . . . Electromagnetic . | . . . Robot Hit Streak 14 | 5 14 7 Robot Miss Streak 4 | 2 4 3 Penetration Max . | . . . Secondary Targets 2 | . 1 1 Max Gunslinging Chain 1 | . 1 1 Shots Hit Robots 133 | 7 105 21 Core Hits 45 | 7 33 5 Critical Kills . | . . . Critical Parts Destroyed . | . . . Critical Strikes 3 | . 1 2 Burn 3 | . 1 2 Melee Attacks . | . . . Impact . | . . . Slashing . | . . . Piercing . | . . . Sneak Attacks . | . . . Combat Hostiles . | . . . Follow-up Attacks . | . . . Damage Inflicted 1621 | 89 1222 310 Guns 1621 | 89 1222 310 Cannons . | . . . Explosions . | . . . Melee . | . . . Ramming . | . . . Kinetic 1291 | 89 1090 112 Thermal 330 | . 132 198 Explosive . | . . . Electromagnetic . | . . . Impact . | . . . Slashing . | . . . Piercing . | . . . Highest Corruption . | . . . Average Corruption . | . . . Corruption Purged . | . . . Corruption Blocked . | . . . Overload Shots . | . . . Overflow Damage . | . . . Projectiles . | . . . Explosions . | . . . Melee . | . . . Knockbacks . | . . . Impact . | . . . Kinetic . | . . . Secondary . | . . . Self-Inflicted Damage . | . . . Shots . | . . . Rammed . | . . . Targets Rammed . | . . . Kicked . | . . . Crushed . | . . . Highest Temperature 182 | . 182 . Average Temperature 33 | . 33 . Received Heat Transfer 522 | . 336 186 Siege Activations . | . . . Martial Activations . | . . . Shielding Activations . | . . . Robots Disrupted . | . . . Combat Hostiles . | . . . Robots Corrupted . | . . . Combat Hostiles . | . . . Parts Fried . | . . . Impact Corruptions . | . . . Robots Melted . | . . . Combat Hostiles . | . . . Parts Melted 1 | . . 1 Heat Transferred 975 | . 383 592 Parts Sabotaged . | . . . Parts Stolen . | . . . Parts Stripped . | . . . Power Chain Reactions . | . . . Alert | -11 -10 -10 ------- Run | Yrd Mat Sub Maximum Alert Level . | . . . Low Security (%) 100 | 100 100 . Level 1 . | . . . Level 2 . | . . . Level 3 . | . . . Level 4 . | . . . Level 5 . | . . . High Security . | . . . Max Security . | . . . Peak Influence 97 | 15 97 . Initial 3 | . 3 . Average 27 | 4 29 . Influence Increases 515 | 25 370 120 Destroy 0b10 Robot/C 280 | . 220 60 Destroy 0b10 Robot/NC 55 | 25 30 . Destroy Leader 50 | . 50 . Successful Hack 24 | . 24 . Select Force Hacks 30 | . 30 . Destroy Structure 1 | . 1 . Lose Combat Pursuer 75 | . 15 60 Influence Decreases 515 | 20 375 120 Entered New Map 2 | . 2 . Time Decay 483 | 20 343 120 Lost Part 30 | . 30 . Squads Dispatched 1 | . 1 . Investigation 1 | . 1 . Extermination . | . . . Reinforcement . | . . . Assault . | . . . Garrison . | . . . Intercept . | . . . Searches Triggered . | . . . Construction Impeded . | . . . Haulers Reinforced . | . . . Active Scanning Responses . | . . . Cargo Convoy Interrupts . | . . . Stealth | -11 -10 -10 --------- Run | Yrd Mat Sub Distress Signals 1 | . 1 . Communications Jammed . | . . . Distress Signals . | . . . Times Spotted 33 | . 20 13 Peak Tracking Total 6 | . 4 6 Tactical Retreats 4 | . 1 3 Traps | -11 -10 -10 ------- Run | Yrd Mat Sub Traps Triggered 1 | . 1 . Indirectly . | . . . Trap Hack Attempts . | . . . Triggered . | . . . Disarmed . | . . . Reprogrammed . | . . . Reused . | . . . Traps Extracted . | . . . Installed . | . . . Triggered . | . . . Machines | -11 -10 -10 ---------- Run | Yrd Mat Sub Machines Disabled . | . . . Max in Single Turn . | . . . Machines Repaired . | . . . Machines Dismantled . | . . . Machines Sabotaged . | . . . Overloaded Fab Kills . | . . . Hacking | -11 -10 -10 --------- Run | Yrd Mat Sub Machines Accessed 9 | . 9 . Terminals 8 | . 8 . Fabricators . | . . . Repair Stations . | . . . Recycling Units 1 | . 1 . Scanalyzers . | . . . Garrison Access . | . . . Total Hacks 23 | . 23 . Successful 11 | . 11 . Failed 12 | . 12 . Catastrophic 1 | . 1 . Database Lockouts . | . . . Manual 11 | . 11 . Terminals 21 | . 21 . Fabricators . | . . . Repair Stations . | . . . Recycling Units 2 | . 2 . Scanalyzers . | . . . Garrison Access . | . . . Terminal Hacks 3 | . 3 . Alert Level 1 | . 1 . Dispatch Records 2 | . 2 . Fabricator Hacks . | . . . Repair Station Hacks . | . . . Recycling Unit Hacks 1 | . 1 . Report Inventory 1 | . 1 . Scanalyzer . | . . . Garrison Access Hacks . | . . . Unauthorized Hacks 7 | . 7 . Terminals 6 | . 6 . Botnet 6 | . 6 . Fabricators . | . . . Repair Stations . | . . . Recycling Units 1 | . 1 . Tunnel 1 | . 1 . Scanalyzers . | . . . Garrison Access . | . . . Data Cores Recovered . | . . . Used . | . . . Hacking Detections 6 | . 6 . Full Trace Events . | . . . Feedback Events . | . . . Feedback Blocked . | . . . Robot Schematics Acquired . | . . . Robots Built . | . . . Authchips . | . . . Time . | . . . Total Robot Build Rating . | . . . Part Schematics Acquired . | . . . Parts Built . | . . . Authchips . | . . . Time . | . . . Total Part Build Rating . | . . . Part Studies Acquired . | . . . Parts Repaired . | . . . Time . | . . . Parts Recycled . | . . . Recycled Matter . | . . . Retrieved Matter . | . . . Retrieved Components . | . . . Parts Scanalyzed . | . . . Part Schematics Acquired . | . . . Parts Damaged . | . . . Bothacking | -11 -10 -10 ------------ Run | Yrd Mat Sub Used RIF Installer . | . . . Robots Hacked . | . . . Non-combat . | . . . Combat . | . . . Robot Hacks Applied . | . . . Relay Couplers Released . | . . . Fabnet Peak Effective % . | . . . Robots Rewired . | . . . Allies Hacked . | . . . Hacks Repelled . | . . . Allies | -11 -10 -10 -------- Run | Yrd Mat Sub Total Allies . | . . . Largest Group . | . . . Highest-Rated Group . | . . . Highest-Rated Ally . | . . . Total Orders . | . . . Ally Attacks . | . . . Total Damage . | . . . Kills . | . . . Allies Corrupted . | . . . Allies Melted . | . . . Intel | -11 -10 -10 ------- Run | Yrd Mat Sub Active Infowar (turns) 525 | 14 511 . Seismic 525 | 14 511 . Robot Analysis Total . | . . . Derelict Logs Recovered . | . . . Drone Launches . | . . . Drone Recoveries . | . . . Exploration | -11 -10 -10 ------------- Run | Yrd Mat Sub Turns Passed 1807 | 95 1190 522 Spaces Moved 883 | 59 680 144 Core 3 | 3 . . Treads 54 | . . 54 Legs . | . . . Wheels 826 | 56 680 90 Hover . | . . . Flight . | . . . Fastest Speed 50 | 50 100 130 Average Speed 137 | 97 127 202 Slowest Speed 320 | 100 130 320 Overloaded Moves . | . . . Propulsion Burnouts . | . . . Robots Hopped . | . . . Potential Cave-ins . | . . . Cave-ins Triggered . | . . . Exploration Rate (%) 33 | 4 88 7 Regions Visited 2 Branch Regions 1 Pre-discovered Areas 1 | . 1 . Known Exits Taken . | . . . Unknown Exits Taken 2 | 1 1 . Scrap Searched . | . . . Spaces Dug . | . . . Terrain Destroyed . | . . . Melee . | . . . Projectile . | . . . AOE . | . . . Terrain Rammed . | . . . Walls Destroyed . | . . . Machines Disabled . | . . . Actions | -11 -10 -10 --------- Run | Yrd Mat Sub Total 1143 | 80 853 210 Wait 55 | . 55 . Move 881 | 58 679 144 Hop . | . . . Pick Up 27 | 8 19 . Fast Attach 10 | 7 3 . Attach 7 | . 3 4 Detach . | . . . Swap 9 | . 7 2 Drop 5 | . 5 . Fire 149 | 7 82 60 Melee . | . . . Ram . | . . . Kick . | . . . Crush . | . . . Escape Stasis . | . . . Rewire . | . . . Trap . | . . . Miscellaneous . | . . . Route ------- -11/Scrapyard -10/Materials (discovered 5 exits: [*Mat x2] / [*Min x2] / [*Sub]) -10/Subcaves (discovered 1 exit: [*Rec]) History --------- Turn | Location | Event 22 | -11/Scrapyard | Discovered new exit (range 16) 96 | -11/Scrapyard | Entered Materials 155 | -10/Materials | Discovered new exit (range 16) 312 | -10/Materials | Build established: Mutant 516 | -10/Materials | Discovered new exit (range 11) 557 | -10/Materials | Discovered new exit (range 4) 769 | -10/Materials | Core integrity fell below 50% 908 | -10/Materials | Discovered new exit (range 15) 1181 | -10/Materials | Discovered new exit (range 12) 1286 | -10/Materials | Entered Subcaves 1287 | -10/Subcaves | Approached by a straggling Scientist 1396 | -10/Subcaves | Ambushed by Subdweller buried in earth 1435 | -10/Subcaves | Discovered new exit (range 14) 1468 | -10/Subcaves | Lost 4 parts (1p2n1u) 1471 | -10/Subcaves | Core integrity fell below 20% 1808 | -10/Subcaves | Destroyed by BB-SBS(R) with Subdweller Machine Gun Last Messages --------------- 01428_ Acquired 25 matter. 01433_ The unstable cave ceiling collapses. 01433_ 15 Matter crushed. 01435_ EXIT=FOUND 01437_ Com. Wheel destroyed. 01440_ S-10 Pest destroyed. 01448_ Flight Unit fries itself beyond repair. 01448_ S-10 Pest destroyed. 01448_ Switching to secondary target: S-10 Pest. 01451_ S-10 Pest destroyed. 01454_ Lgt. Ion Engine fries itself beyond repair. 01460_ S-10 Pest destroyed. 01465_ Lgt. Ion Engine fries itself beyond repair. 01466_ Acquired 17 matter. 01470_ Lgt. Assault Rifle fries itself beyond repair. 01470_ Acquired 8 matter. 01473_ Flight Unit fries itself beyond repair. 01499_ Acquired 3 matter. 01519_ Acquired 5 matter. 01807_ Lgt. Armor Plating destroyed. Map ----- +----------------------------------------------------+ | ?????????????????????????????????????????????????? | | ?????????????????????????????????????????????????? | | ?????????????????????????????????????????????????? | | ?????????????????????????????????????????????????? | | ?????????????????????????????????????????????????? | | ?????????????????????????????????????????????????? | | ?????????????????????????????????????????????????? | | ?????????????????????????????????????????????????? | | ?????????????????????????????????????????????????? | | ?????????????????????????????????????????????????? | | ?????????????????????????????????????????????????? | | ?????????????????????????????????????????????????? | | ?????????????????????????????????????????????????? | | ?????????????????????????????????????????????????? | | ????????????????????????????????????????? ??????? | | ????????????????????????????????????????# %?????? | | ???????????????????????????????????????? #?????? | | ???????????????????????????????????????? ?????? | | ???????????????????????????????????????? ?????? | | ???????????????????????????????????????? ?????? | | ???????????????????????????????????????? #?????? | | ????????????????????????????????????????# #?????? | | ??????????????????????####?????????????## ##????? | | ??????????????????????# ##???##???????# #????? | | ??????????????????????# #??#""" ?????# #????? | | ?????????????????????## @#??#" ????# #????? | | ?????????????????????# ##??#" #### #????? | | ????????????????????## #??##"" % #????? | | ???????????????????## ##??#< % #?????? | | ????????????????#### ######"" #?????? | | ???????????????## #" ##### #?????? | | ??????????????## #??????????# ###????? | | ?????????????## # #??????????## ##????? | | ?????????????# ### ##???????????## ##???? | | ?????????????# #### #????????????# #???? | | ?????????????## #?# #???????????## ##???? | | ?????????????## R #?## ####????????#### ##????? | | ????????????## R #??# ##??????????## #?????? | | ????????????# ## #?## #?????????## # ###?????? | | ?????????#### ### ## #??######## # # #??????? | | ????????## ## ## ##?# # ###??????? | | ????????# ######## ### ### ## ## #???????? | | ????????# #??????# ##?# ##? ??????? | | ????????## #??????# # # ### ####?? #?????? | | ?????????## #??????###### # ##?????? #??????? | | ??????????## #???????????## ????????? #??????? | | ??????????## ##???????????? #??????? ??????? | | ??????????# #????????????? #??????? ??????? | | ?????????# #???????????? #??????? ?????? | | ????????# #????????????? ???????? ?????? | +----------------------------------------------------+ Best States ------------- Heat Dissipation 25 Energy Generation 14 Energy Capacity 250 Matter Stores 300 Matter Capacity 300 Sight Range 16 Terrain Scan Density 10 Armor Coverage 150 Evasion (%) 40 Recoil Reduction 2 Item Schematics ----------------- None Robot Schematics ------------------ None Fabricated ------------ Nothing Repaired ---------- Nothing Studied --------- None Alien Tech Used ----------------- None Achievements -------------- None Challenges ------------ None Game ------ Seed ElectronFluxTurretformer Manual? 0 Play Time 00:14:02 Cumulative 92.7 hours Start 2026.08.21 @ 12:10:04 End 2026.08.21 @ 13:36:08 Sessions 1 Manual Loads 0 Difficulty Rogue Special Mode None Game No. 83 Rogue 81 Adventurer 2 Explorer 0 Win Type - Total 0 Types 0/0/0/0/0/0/0/0/0/0 Lore% 45 Gallery% 39 Achievement% 30 Wizard Run 0 Options --------- Layout 0 ASCII 0 Keyboard 0 Movement Mouse Keybinds 0 Fullscreen 2 Font 24/Smallcaps Map View 76x50 Zoom Use 0% Tactical HUD 1 Map Filters NONE Filters NONE Steam 1 RUN: 4e9c5e7e-198f-4a96-a04b-0916b7eeaead